Workbook

Sheet INFORME 7
A1: AMERICA MOVIL PERU S.A.C.
A3: INFORME 7: ATRIBUCIÓN DE GASTOS A LAS LÍNEAS DE NEGOCIO
A5: Periodo de reporte: Al 31 de Diciembre de 2018
A6: Expresado en Miles de Soles | B6: 1. Acceso Instalación Telefonía Fija de Abonado Urbano | C6: 2. Prestación del servicio de voz Telefonía Fija local desde Abonado Urbano | D6: 3. Prestación del servicio de voz Telefonía Fija LD desde Abonado Urbano | E6: 4. Prestación del servicio de voz Telefonía Fija Local desde TUP Urbano | F6: 5. Prestación del servicio de voz Telefonía Fija LD desde TUP Urbano | G6: 6. Acceso Instalación Telefonía Fija de Abonado Rural | H6: 7. Prestación del servicio de voz Telefonía Fija Local desde Abonado Rural | I6: 8. Prestación del servicio de voz Telefonía Fija LD desde Abonado Rural | J6: 9. Prestación del servicio de voz Telefonía Fija Local desde TUP Rural | K6: 10. Prestación del servicio de voz Telefonía Fija LD desde TUP Rural | L6: 11. Instalación Televisión de Paga | M6: 12. Prestación de servicios Televisión de Paga | N6: 13. Instalación Internet Fijo | O6: 14. Prestación de servicios Internet Fijo | P6: 15. Prestación de servicio voz móvil por Telefonía Móvil | Q6: 16. Mensajes de Texto Telefonía Móvil | R6: 17. Roaming Internacional por Telefonía Móvil | S6: 18. Prestación de Internet Móvil | T6: 19. Servicios Suplementarios | U6: 20. Servicios de valor añadido (No incluye Internet) | V6: 21. Suministro de Equipos | W6: 22. Instalación para Alquiler de circuitos y Transmisión de Datos para clientes privados y otros operadores | X6: 23. Alquiler de Circuitos y Transmisión de Datos a clientes privados y otros operadores | Y6: 24. Provisión de acceso a EEDE | Z6: 25. Interconexión | AA6: 26. Otros | AB6: Total
A7: Gastos Planilla | B7: 20.3642901 | C7: 40658.52968 | D7: 789.9125429 | E7: 102.0549394 | F7: 15.77664036 | G7: 0 | H7: 0.005139765206 | I7: 9.932162049e-05 | J7: 0.4927518704 | K7: 0.009342785584 | L7: 213.9641177 | M7: 18321.87 | N7: 25.37676091 | O7: 37032.52914 | P7: 79793.67712 | Q7: 9689.200228 | R7: 0 | S7: 133498.1349 | T7: 1170.540409 | U7: 9933.648066 | V7: 0 | W7: 5.56813078 | X7: 1872.058239 | Y7: 77.31387759 | Z7: 0 | AA7: 0.008215905629 | AB7: =SUM(B7:AA7) -> 333221.0346
A8: Gastos de personal permanente | B8: 19.14727029 | C8: 38228.67646 | D8: 742.7054365 | E8: 95.95588648 | F8: 14.83378973 | G8: 0 | H8: 0.00483260026 | I8: 9.338591742e-05 | J8: 0.4633038129 | K8: 0.008784437857 | L8: 201.1770985 | M8: 17226.91021 | N8: 23.86018358 | O8: 34819.37458 | P8: 75025.01172 | Q8: 9110.149913 | R8: 0 | S8: 125519.9597 | T8: 1100.58605 | U8: 9339.98895 | V8: 0 | W8: 5.23536566 | X8: 1760.179458 | Y8: 72.69341108 | Z8: 0 | AA8: 0.007724903005 | AB8: 313306.9302
A9: Gastos de personal temporal | B9: 1.217019806 | C9: 2429.853223 | D9: 47.20710643 | E9: 6.099052899 | F9: 0.9428506326 | G9: 0 | H9: 0.0003071649454 | I9: 5.935703075e-06 | J9: 0.02944805751 | K9: 0.0005583477277 | L9: 12.78701923 | M9: 1094.959783 | N9: 1.516577327 | O9: 2213.154558 | P9: 4768.665395 | Q9: 579.0503145 | R9: 0 | S9: 7978.175202 | T9: 69.9543591 | U9: 593.6591154 | V9: 0 | W9: 0.3327651203 | X9: 111.8787812 | Y9: 4.620466507 | Z9: 0 | AA9: 0.0004910026242 | AB9: 19914.1044
A10: Gastos generales y administrativos | B10: 50.66250272 | C10: 101150.733 | D10: 1965.153028 | E10: 4427.062919 | F10: 684.3782375 | G10: 0 | H10: 0.01278676386 | I10: 0.0002470934093 | J10: 21.37518818 | K10: 0.4052826828 | L10: 1641.293301 | M10: 140544.8858 | N10: 88.24437403 | O10: 128775.7868 | P10: 573903.2002 | Q10: 95722.87477 | R10: 18747.28049 | S10: 1324793.066 | T10: 9769.212069 | U10: 98137.85736 | V10: 0 | W10: 46.47105729 | X10: 15624.00904 | Y10: 763.8098552 | Z10: 299536.8783 | AA10: 605963.4566 | AB10: 3422358.109
A11: Depreciación | B11: 26.90479842 | C11: 53717.04783 | D11: 1043.612993 | E11: 362.0709575 | F11: 55.97243325 | G11: 0 | H11: 0.006790531176 | I11: 0.0001312212783 | J11: 1.748187227 | K11: 0.0331463753 | L11: 424.2627775 | M11: 36329.86473 | N11: 81.19192986 | O11: 118484.0934 | P11: 33458.86805 | Q11: 13505.20994 | R11: 0 | S11: 186115.755 | T11: 10004.12689 | U11: 13845.93149 | V11: 365.000044 | W11: 47.58852102 | X11: 15999.71092 | Y11: 107.7632956 | Z11: 0 | AA11: 1524.083311 | AB11: 485500.8475
A12: Amortización | B12: 1.192466702 | C12: 2380.831475 | D12: 46.25471356 | E12: 40.86982475 | F12: 6.318053106 | G12: 0 | H12: 0.000300967961 | I12: 5.815951586e-06 | J12: 0.1973317775 | K12: 0.003741494648 | L12: 14.92980557 | M12: 1278.447805 | N12: 7.13324737 | O12: 10409.61028 | P12: 25929.69847 | Q12: 13738.85443 | R12: 0 | S12: 189347.0806 | T12: 696.2595267 | U12: 14085.47057 | V12: 3.025049187 | W12: 3.312029274 | X12: 1113.535571 | Y12: 109.6276353 | Z12: 0 | AA12: 19.47961489 | AB12: 259232.1325
A13: Existencias | B13: 0.8427311902 | C13: 1682.563495 | D13: 32.68878681 | E13: 11.6084457 | F13: 1.7945459 | G13: 0 | H13: 0.0002126978367 | I13: 4.110206006e-06 | J13: 0.05604905912 | K13: 0.001062714062 | L13: 26.26675423 | M13: 2249.237215 | N13: 2.334425543 | O13: 3406.647612 | P13: 2613.064715 | Q13: 197.2225501 | R13: 0 | S13: 2763.109692 | T13: 74.69699944 | U13: 202.1982576 | V13: 1267307.148 | W13: 0.3553253339 | X13: 119.4637384 | Y13: 1.573715037 | Z13: 0 | AA13: 0.002441267325 | AB13: 1280692.876
A14: Capitalización de gastos por construcción de planta o trabajo para el inmovilizado | B14: 0 | C14: 0 | D14: 0 | E14: 0 | F14: 0 | G14: 0 | H14: 0 | I14: 0 | J14: 0 | K14: 0 | L14: 0 | M14: 0 | N14: 0 | O14: 0 | P14: 0 | Q14: 0 | R14: 0 | S14: 0 | T14: 0 | U14: 0 | V14: 0 | W14: 0 | X14: 0 | Y14: 0 | Z14: 0 | AA14: 0 | AB14: 0
A15: Honorarios por transferencia de capacidad técnica y gestión de accionistas | B15: 0 | C15: 0 | D15: 0 | E15: 0 | F15: 0 | G15: 0 | H15: 0 | I15: 0 | J15: 0 | K15: 0 | L15: 0 | M15: 0 | N15: 0 | O15: 0 | P15: 0 | Q15: 0 | R15: 0 | S15: 0 | T15: 0 | U15: 0 | V15: 0 | W15: 0 | X15: 0 | Y15: 0 | Z15: 0 | AA15: 0 | AB15: 0
A16: Servicios de gestión administrativa y gastos compartidos | B16: 0 | C16: 0 | D16: 0 | E16: 0 | F16: 0 | G16: 0 | H16: 0 | I16: 0 | J16: 0 | K16: 0 | L16: 0 | M16: 0 | N16: 0 | O16: 0 | P16: 0 | Q16: 0 | R16: 0 | S16: 0 | T16: 0 | U16: 0 | V16: 0 | W16: 0 | X16: 0 | Y16: 0 | Z16: 0 | AA16: 0 | AB16: 0
A17: Provisión por desvalorización de activos | B17: 0 | C17: 0 | D17: 0 | E17: 0 | F17: 0 | G17: 0 | H17: 0 | I17: 0 | J17: 0 | K17: 0 | L17: 0 | M17: 0 | N17: 0 | O17: 0 | P17: 0 | Q17: 0 | R17: 0 | S17: 0 | T17: 0 | U17: 0 | V17: 0 | W17: 0 | X17: 0 | Y17: 0 | Z17: 0 | AA17: 0 | AB17: 0
A18: Otros gastos operativos | B18: 1.439000872 | C18: 2873.051768 | D18: 55.81755282 | E18: 18.20267449 | F18: 2.813945614 | G18: 0 | H18: 0.0003631909867 | I18: 7.018358991e-06 | J18: 0.0878879744 | K18: 0.001666393472 | L18: 36.05379906 | M18: 3087.307471 | N18: 8.320768902 | O18: 12142.57083 | P18: 93948.47291 | Q18: 5615.265233 | R18: 435.6085607 | S18: 78656.09768 | T18: =3007.06652557656 -> 3007.066526 | U18: =5756.9321833478 -> 5756.932183 | V18: 0 | W18: 14.30428163 | X18: =4809.23479371052 -> 4809.234794 | Y18: 44.80637397 | Z18: 6034.828882 | AA18: 12520.6042 | AB18: =SUM(B18:AA18) -> 229068.8894
A19: Total general | B19: =B7+SUM(B10:B18) -> 101.40579 | C19: =C7+SUM(C10:C18) -> 202462.7573 | D19: =D7+SUM(D10:D18) -> 3933.439617 | E19: =E7+SUM(E10:E18) -> 4961.869761 | F19: =F7+SUM(F10:F18) -> 767.0538557 | G19: =G7+SUM(G10:G18) -> 0 | H19: =H7+SUM(H10:H18) -> 0.02559391703 | I19: =I7+SUM(I10:I18) -> 0.0004945808247 | J19: =J7+SUM(J10:J18) -> 23.95739609 | K19: =K7+SUM(K10:K18) -> 0.4542424458 | L19: =L7+SUM(L10:L18) -> 2356.770555 | M19: =M7+SUM(M10:M18) -> 201811.613 | N19: =N7+SUM(N10:N18) -> 212.6015066 | O19: =O7+SUM(O10:O18) -> 310251.2381 | P19: =P7+SUM(P10:P18) -> 809646.9815 | Q19: =Q7+SUM(Q10:Q18) -> 138468.6271 | R19: =R7+SUM(R10:R18) -> 19182.88905 | S19: =S7+SUM(S10:S18) -> 1915173.243 | T19: =T7+SUM(T10:T18) -> 24721.90242 | U19: =U7+SUM(U10:U18) -> 141962.0379 | V19: =V7+SUM(V10:V18) -> 1267675.173 | W19: =W7+SUM(W10:W18) -> 117.5993453 | X19: =X7+SUM(X10:X18) -> 39538.01231 | Y19: =Y7+SUM(Y10:Y18) -> 1104.894753 | Z19: =Z7+SUM(Z10:Z18) -> 305571.7072 | AA19: =AA7+SUM(AA10:AA18) -> 620027.6344 | AB19: =AB7+SUM(AB10:AB18) -> 6010073.889
